Cogmind - Beta 13 @@@ ROGUE MODE // 2024.05.24 @ 19:41:48 Player: kaj Result: Destroyed by as-37673 with Assembled Blade Performance ------------- Evolutions (0) 0 Regions Visited (4) 800 Robots Destroyed (14) 70 Value Destroyed (303) 303 Prototype IDs (23) 460 Alien Tech Used (0) 0 Bonus (289) 289 TOTAL SCORE: 1922 Bonus ------- Aligned with FarCom 300 Friendly Fire -11 Cogmind --------- Core Integrity 0/250 Matter 228/300 Energy 100/100 System Corruption 6% Temperature Cool (60) Movement Core (700) Ox13 Location -9/Mines Parts ------- > --- POWER (1) -------- (None) > --- PROPULSION (2) --- (None) > --- UTILITY (2) ------ High-capacity Storage Unit Targeting Computer > --- WEAPON (2) ------- (None) > --- INVENTORY (20) --- Small Storage Unit Medium Matter Pod (100) High-capacity Matter Pod (200) High-capacity Matter Pod (200) High-capacity Matter Pod (200) Experimental Sensor Array Medium Laser XL Autogun Array Bore Cannon Peak State ------------ > --- POWER ------------ Ion Engine > --- PROPULSION ------- Compact Wheel Compact Wheel > --- UTILITY ---------- Small Storage Unit Targeting Computer > --- WEAPON ----------- Small Laser Rocket Launcher > --- INVENTORY -------- Compact Wheel High-capacity Storage Unit High-capacity Matter Pod Medium Laser XL Autogun Array [Rating: 12] Favorites ----------- Power Ion Engine Engine Ion Engine Propulsion Compact Wheel Leg Aluminum Leg Wheel Compact Wheel Hover Unit Hover Unit Flight Unit Flight Unit Utility Small Storage Unit Device Sensor Array Storage Small Storage Unit Processor Targeting Computer Weapon Small Laser Energy Gun Small Laser Ballistic Gun Light Assault Rifle Launcher Rocket Launcher Build | -11 -10 -10 -10 -9 ------- Run | Yrd Mat Min Exi Min Slots Evolved . | . . . . . Power . | . . . . . Propulsion . | . . . . . Utility . | . . . . . Weapon . | . . . . . Parts Attached 25 | 1 14 . 5 5 Power 2 | . 2 . . . Engine 2 | . 2 . . . Core . | . . . . . Reactor . | . . . . . Propulsion 10 | 1 6 . 2 1 Treads . | . . . . . Leg 1 | . 1 . . . Wheel 6 | 1 2 . 2 1 Hover 2 | . 2 . . . Flight 1 | . 1 . . . Utility 6 | . 3 . 2 1 Device 3 | . 2 . 1 . Storage 2 | . 1 . . 1 Processor 1 | . . . 1 . Hackware . | . . . . . Protection . | . . . . . Artifact . | . . . . . Weapon 7 | . 3 . 1 3 Energy Gun 5 | . 3 . 1 1 Energy Cannon . | . . . . . Ballistic Gun . | . . . . . Ballistic Cannon . | . . . . . Launcher 2 | . . . . 2 Special Weapon . | . . . . . Impact Weapon . | . . . . . Slashing Weapon . | . . . . . Piercing Weapon . | . . . . . Special Melee Weapon . | . . . . . Unidentified Prototypes . | . . . . . Parts Lost 8 | . 2 . . 6 Power 1 | . . . . 1 Propulsion 5 | . 2 . . 3 Utility . | . . . . . Weapon 2 | . . . . 2 Highest Loss Streak 6 | . 2 . . 6 To Critical Strikes . | . . . . . Average Slot Usage (%) 97 | . 96 100 100 95 Engine 13 | . 14 14 14 13 Leg 1 | . 3 . . . Wheel 18 | . 10 28 28 26 Hover 6 | . 13 . . . Device 7 | . 11 14 6 . Storage 14 | . 14 14 14 14 Processor 5 | . . . 7 14 Energy Gun 25 | . 23 28 28 25 Ballistic Gun 2 | . 4 . . . Naked Turns . | . . . . . Heaviest Build 48 | 13 13 13 14 48 Greatest Support 32 | 20 32 32 32 32 Greatest Overweight (x) 2 | 1 1 . . 2 Average Overweight (x) . | . . . . . Largest Inventory Capacity 20 | 8 8 8 8 20 Average Capacity 9 | 8 8 8 8 13 Most Carried 12 | 6 8 8 8 12 Average Carried 8 | 6 7 7 7 9 Final Capacity 20 | 8 8 8 8 20 Final Carried 12 | 6 7 8 8 12 Class Distribution -------------------- 90% | Mutant 9% | Scavenger-Mutant Dominant Class ---------------- Mutant | -10/Materials Mutant | -10/Mines Mutant | -10/Exiles Mutant | -9/Mines Resources | -11 -10 -10 -10 -9 ----------- Run | Yrd Mat Min Exi Min Matter Collected 690 | 210 282 . 138 60 Remotely . | . . . . . Salvage Created 369 | . 295 . . 74 Parts 24 | . 21 . . 3 Haulers Intercepted . | . . . . . Recyclers Shooed 1 | . 1 . . . Parts Field Recycled . | . . . . . Retrieved Matter . | . . . . . Parts Self-Destructed . | . . . . . Prevented . | . . . . . Kills | -11 -10 -10 -10 -9 ------- Run | Yrd Mat Min Exi Min Combat Hostiles Destroyed 23 | . 9 . . 14 Guns 10 | . 9 . . 1 AOE 13 | . . . . 13 Classes Destroyed 4 | . 3 . . 1 Watcher 1 | . 1 . . . Swarmer 7 | . 3 . . 4 Grunt 6 | . 6 . . . Assembled 10 | . . . . 10 Best Kill Streak 10 | . 3 . . 10 Combat Bots Only 10 | . 3 . . 10 Max Kills in Single Turn 4 | . 1 . . 4 Gunslinging . | . . . . . Exploded 4 | . . . . 4 Melee . | . . . . . Uniques/NPCs Destroyed . | . . . . . Combat | -11 -10 -10 -10 -9 -------- Run | Yrd Mat Min Exi Min Hostile Shots Fired 87 | . 45 . . 42 Missed 29 | . 20 . . 9 Damage Taken 864 | . 261 . . 603 Core 258 | . 7 . . 251 Absorbed by Shields . | . . . . . Core Remaining (%) 100 | 100 . . . . Volleys Fired 58 | . 44 . . 14 Largest 2 | . 2 . . 2 Hottest 90 | . 80 . . 90 Shots Fired 90 | . 73 . . 17 Gun 81 | . 73 . . 8 Cannon . | . . . . . Launcher 9 | . . . . 9 Special . | . . . . . Kinetic 33 | . 33 . . . Thermal 48 | . 40 . . 8 Explosive 9 | . . . . 9 Electromagnetic . | . . . . . Robot Hit Streak 8 | . 8 . . 3 Robot Miss Streak 6 | . 6 . . 2 Penetration Max . | . . . . . Secondary Targets . | . . . . . Shots Hit Robots 45 | . 38 . . 7 Core Hits 43 | . 20 . . 23 Critical Kills . | . . . . . Critical Parts Destroyed . | . . . . . Critical Strikes 2 | . 1 . . 1 Burn 2 | . 1 . . 1 Melee Attacks . | . . . . . Impact . | . . . . . Slashing . | . . . . . Piercing . | . . . . . Sneak Attacks . | . . . . . Combat Hostiles . | . . . . . Follow-up Attacks . | . . . . . Damage Inflicted 1597 | . 416 . . 1181 Guns 468 | . 416 . . 52 Cannons . | . . . . . Explosions 1129 | . . . . 1129 Melee . | . . . . . Ramming . | . . . . . Kinetic 135 | . 135 . . . Thermal 333 | . 281 . . 52 Explosive 1129 | . . . . 1129 Electromagnetic . | . . . . . Impact . | . . . . . Slashing . | . . . . . Piercing . | . . . . . Highest Corruption 6 | . 3 3 3 6 Average Corruption 3 | . 2 3 3 3 Corruption Purged . | . . . . . Corruption Blocked . | . . . . . Effects 10 | . 1 . 4 5 Message Errors 5 | . 1 . 1 3 Matter Fused 2 | . . . 2 . Data Loss (major) 2 | . . . 1 1 Weapon Failures 1 | . . . . 1 Overload Shots . | . . . . . Overflow Damage 39 | . . . . 39 Projectiles . | . . . . . Explosions 39 | . . . . 39 Melee . | . . . . . Knockbacks . | . . . . . Impact . | . . . . . Kinetic . | . . . . . Secondary . | . . . . . Self-Inflicted Damage 86 | . . . . 86 Shots 3 | . . . . 3 Rammed . | . . . . . Targets Rammed . | . . . . . Kicked . | . . . . . Crushed . | . . . . . Highest Temperature 131 | . 131 . . 90 Average Temperature 46 | . 47 . . 40 Received Heat Transfer 189 | . 69 . . 120 Siege Activations . | . . . . . Robots Corrupted . | . . . . . Combat Hostiles . | . . . . . Parts Fried . | . . . . . Impact Corruptions . | . . . . . Robots Melted . | . . . . . Combat Hostiles . | . . . . . Parts Melted 2 | . 2 . . . Heat Transferred 991 | . 781 . . 210 Parts Sabotaged . | . . . . . Parts Stolen . | . . . . . Parts Stripped . | . . . . . Power Chain Reactions . | . . . . . Alert | -11 -10 -10 -10 -9 ------- Run | Yrd Mat Min Exi Min Peak Influence 291 | . 291 48 . 123 Initial 48 | . . 48 . . Average 145 | . 168 48 . 114 Maximum Alert Level 1 | . 1 . . . Low Security (%) 74 | 100 59 100 . 100 Level 1 25 | . 40 . . . Level 2 . | . . . . . Level 3 . | . . . . . Level 4 . | . . . . . Level 5 . | . . . . . High Security . | . . . . . Max Security . | . . . . . Squads Dispatched 3 | . 3 . . . Investigation 2 | . 2 . . . Extermination . | . . . . . Reinforcement 1 | . 1 . . . Assault . | . . . . . Garrison . | . . . . . Intercept . | . . . . . Searches Triggered . | . . . . . Construction Impeded . | . . . . . Haulers Reinforced . | . . . . . Active Scanning Responses . | . . . . . Cargo Convoy Interrupts . | . . . . . Stealth | -11 -10 -10 -10 -9 --------- Run | Yrd Mat Min Exi Min Distress Signals 1 | . 1 . . . Communications Jammed . | . . . . . Distress Signals . | . . . . . Times Spotted 39 | . 15 . . 24 Peak Tracking Total 11 | . 3 . . 11 Tactical Retreats 1 | . 1 . . . Traps | -11 -10 -10 -10 -9 ------- Run | Yrd Mat Min Exi Min Traps Triggered 3 | . 3 . . . Indirectly . | . . . . . Trap Hack Attempts . | . . . . . Triggered . | . . . . . Disarmed . | . . . . . Reprogrammed . | . . . . . Reused . | . . . . . Traps Extracted . | . . . . . Installed . | . . . . . Triggered . | . . . . . Machines | -11 -10 -10 -10 -9 ---------- Run | Yrd Mat Min Exi Min Machines Disabled . | . . . . . Max in Single Turn . | . . . . . Machines Repaired . | . . . . . Machines Dismantled . | . . . . . Machines Sabotaged . | . . . . . Overloaded Fab Kills . | . . . . . Hacking | -11 -10 -10 -10 -9 --------- Run | Yrd Mat Min Exi Min Machines Accessed 6 | . 5 . 1 . Terminals 4 | . 4 . . . Fabricators . | . . . . . Repair Stations . | . . . . . Recycling Units 1 | . 1 . . . Scanalyzers . | . . . . . Garrison Access . | . . . . . Total Hacks 18 | . 17 . 1 . Successful 8 | . 7 . 1 . Failed 10 | . 10 . . . Catastrophic 4 | . 4 . . . Database Lockouts . | . . . . . Manual 18 | . 17 . 1 . Terminals 13 | . 13 . . . Fabricators . | . . . . . Repair Stations . | . . . . . Recycling Units 4 | . 4 . . . Scanalyzers . | . . . . . Garrison Access . | . . . . . Terminal Hacks 4 | . 3 . 1 . Robot Analysis 2 | . 2 . . . Zone Layout 1 | . 1 . . . Derelict Proto ID Bank 1 | . . . 1 . Fabricator Hacks . | . . . . . Repair Station Hacks . | . . . . . Recycling Unit Hacks . | . . . . . Scanalyzer . | . . . . . Garrison Access Hacks . | . . . . . Unauthorized Hacks 4 | . 4 . . . Terminals 3 | . 3 . . . Botnet 3 | . 3 . . . Fabricators . | . . . . . Repair Stations . | . . . . . Recycling Units 1 | . 1 . . . Monitor 1 | . 1 . . . Scanalyzers . | . . . . . Garrison Access . | . . . . . Data Cores Recovered . | . . . . . Used . | . . . . . Hacking Detections 4 | . 4 . . . Full Trace Events 2 | . 2 . . . Feedback Events . | . . . . . Feedback Blocked . | . . . . . Robot Schematics Acquired . | . . . . . Robots Built . | . . . . . Authchips . | . . . . . Time . | . . . . . Total Robot Build Rating . | . . . . . Part Schematics Acquired . | . . . . . Parts Built . | . . . . . Authchips . | . . . . . Time . | . . . . . Total Part Build Rating . | . . . . . Parts Repaired . | . . . . . Time . | . . . . . Parts Recycled . | . . . . . Recycled Matter . | . . . . . Retrieved Matter . | . . . . . Retrieved Components . | . . . . . Parts Scanalyzed . | . . . . . Part Schematics Acquired . | . . . . . Parts Damaged . | . . . . . Bothacking | -11 -10 -10 -10 -9 ------------ Run | Yrd Mat Min Exi Min Used RIF Installer . | . . . . . Robots Hacked . | . . . . . Non-combat . | . . . . . Combat . | . . . . . Robot Hacks Applied . | . . . . . Relay Couplers Released . | . . . . . Fabnet Peak Effective % . | . . . . . Robots Rewired . | . . . . . Allies Hacked . | . . . . . Hacks Repelled . | . . . . . Allies | -11 -10 -10 -10 -9 -------- Run | Yrd Mat Min Exi Min Total Allies . | . . . . . Largest Group . | . . . . . Highest-Rated Group . | . . . . . Highest-Rated Ally . | . . . . . Total Orders . | . . . . . Ally Attacks . | . . . . . Total Damage . | . . . . . Kills . | . . . . . Allies Corrupted . | . . . . . Allies Melted . | . . . . . Intel | -11 -10 -10 -10 -9 ------- Run | Yrd Mat Min Exi Min Robot Analysis Total 2 | . 2 . . . Derelict Logs Recovered . | . . . . . Drone Launches . | . . . . . Drone Recoveries . | . . . . . Exploration | -11 -10 -10 -10 -9 ------------- Run | Yrd Mat Min Exi Min Turns Passed 1240 | 4 614 41 270 311 Spaces Moved 941 | 3 430 41 260 207 Core . | . . . . . Treads . | . . . . . Legs 1 | 1 . . . . Wheels 762 | 2 252 41 260 207 Hover 178 | . 178 . . . Flight . | . . . . . Fastest Speed 56 | 95 56 100 100 100 Average Speed 93 | 103 82 100 100 108 Slowest Speed 130 | 120 116 100 100 130 Overloaded Moves . | . . . . . Propulsion Burnouts . | . . . . . Robots Hopped . | . . . . . Cave-ins Triggered . | . . . . . Exploration Rate (%) 37 | 2 64 10 61 48 Regions Visited 4 Branch Regions 3 Pre-discovered Areas . | . . . . . Known Exits Taken . | . . . . . Unknown Exits Taken 4 | 1 1 1 1 . Scrap Searched . | . . . . . Spaces Dug . | . . . . . Terrain Destroyed 60 | . . . . 60 Melee . | . . . . . Projectile . | . . . . . AOE 60 | . . . . 60 Terrain Rammed . | . . . . . Walls Destroyed . | . . . . . Machines Disabled . | . . . . . Actions | -11 -10 -10 -10 -9 --------- Run | Yrd Mat Min Exi Min Total 1214 | 3 625 41 271 274 Wait 158 | . 115 . . 43 Move 937 | 2 429 40 259 207 Hop . | . . . . . Pick Up 16 | . 8 1 2 5 Fast Attach 8 | . 8 . . . Attach 6 | . 3 . 2 1 Detach 2 | . 2 . . . Swap 11 | 1 3 . 3 4 Drop 18 | . 13 . 5 . Fire 58 | . 44 . . 14 Melee . | . . . . . Ram . | . . . . . Kick . | . . . . . Crush . | . . . . . Escape Stasis . | . . . . . Rewire . | . . . . . Trap . | . . . . . Miscellaneous . | . . . . . Route ------- -11/Scrapyard -10/Materials (discovered 2 exits: [*Mat] / [*Min]) -10/Mines -10/Exiles (discovered 2 exits: [*Min x2]) -9/Mines (discovered 1 exit: [*Mat]) History --------- Turn | Location | Event 1 | -11/Scrapyard | Discovered new exit (range 2) 5 | -11/Scrapyard | Entered Materials 232 | -10/Materials | Discovered new exit (range 16) 300 | -10/Materials | Build established: Mutant 541 | -10/Materials | Discovered new exit (range 8) 619 | -10/Materials | Entered Mines 626 | -10/Mines | Received a Rocket Launcher from a helpful Derelict 655 | -10/Mines | Deemed a non-threat by the Exiles lab entrance 656 | -10/Mines | Discovered new exit (range 5) 660 | -10/Mines | Entered Exiles 676 | -10/Exiles | Discovered new exit (range 14) 688 | -10/Exiles | Met 8R-AWN 706 | -10/Exiles | Met EX-HEX 735 | -10/Exiles | Met EX-BIN 746 | -10/Exiles | Aligned with FarCom system 747 | -10/Exiles | Given EX-Vault access code 772 | -10/Exiles | Opened EX-Vault 787 | -10/Exiles | Found XL Autogun Array 812 | -10/Exiles | Warned to stay clear of 0b10 Research branches 838 | -10/Exiles | Met EX-DEC 918 | -10/Exiles | Discovered new exit (range 14) 930 | -10/Exiles | Left Exiles lab with XL Autogun Array 930 | -10/Exiles | Entered Mines 950 | -9/Mines | Discovered new exit (range 8) 1122 | -9/Mines | Found a damaged Exp. Sensor Array with a note attached 1124 | -9/Mines | Found Prototype Device 1202 | -9/Mines | Assembled infested the area 1207 | -9/Mines | Assisted by a Guerilla fighting off Assembled 1234 | -9/Mines | Core integrity fell below 50% 1238 | -9/Mines | Core integrity fell below 20% 1241 | -9/Mines | Destroyed by as-37673 with Assembled Blade Last Messages --------------- 01226_ Com. Wheel destroyed. 01227_ HV Slug penetrates as-97960. 01227_ as-97960 destroyed. 01227_ HV Slug penetrates Wall. 01229_ Destroyed Asb. Hover Unit. 01229_ Ion Engine destroyed. 01229_ Destroyed Ion Engine. 01230_ as-03332 destroyed. 01231_ The unstable cave ceiling collapses. 01231_ HV Slug penetrates as-47548. 01231_ as-47548 suffers critical hit (Destroy). 01231_ as-92552 destroyed. 01231_ YG-SWQ(h) destroyed. 01232_ Rocket Launcher destroyed. 01232_ Knocked back. 01234_ The unstable cave ceiling collapses. 01237_ Acquired Bore Cannon. 01239_ The unstable cave ceiling collapses. 01241_ Critical hit (Burn: +80). 01241_ Com. Wheel destroyed. Map ----- +----------------------------------------------------+ | | | | | | | ?????????????????????????????????????????????????? | | ?????????????????????????????????????????????????? | | ?????????????????????????????????????????????????? | | ?????????????????????????????????????????????????? | | ?????????????????????????????????????????????????? | | ?????????????????????????????????????????????????? | | ?????????????????????????????????????????????????? | | ?????????????????????????????????????????????????? | | ?????????????????????????????????????????????????? | | ????????????????????##???????????????????????????? | | ?????????????? #??## ??????######???????????????? | | #????????????? ### ????## #???????????????? | | ##???????????? ????# #?#?????????????? | | ##???????????? ????# # ###?????#?????? | | #?????????????# ???## # # ### "?????? | | #??????????????# ???# # ????? | | #???????????????? ??## # ????? | | #?????????????????# #?# a ???? | | #???????????#####???# ## a % ???? | | ##??????????## ##???# ???? | | #??????????## #???## a% a ???? | | ## #??????## #????##aa # ## #????? | | #??????# #?????#@ # #####??????????? | | ####??????# """ #?????# ###### #??????????????? | | ??????????## """ #?????# #????? #??????????????? | | ???????????## """ #?????# #????? #??????????????? | | ############# ##????# ###??? #??????????????? | | ###### #### #??????????????? | | ####### ##### ## #??????????????? | | #?????# #???## #??????????????? | | ####### #????# ########??????????????? | | #??# #### ##?????????????????????? | | #??## ##??######??????????????????????? | | ###### #???####???????????????????????????????? | | ##????? ????????????????????????????????????????? | | ##?????? ????????????????????????????????????????? | | ???????? ????????????????????????????????????????? | | ???????? ???????????????????????????????????????? | | ?####??? ???????????????????????????????????????? | | ## #??? ???????????????????????????????????????? | | # #???? ???????????????????????????????????????? | | ##??? ???????????????????????????????????????? | | #??? #??????????????????????????????????????? | | ##?? #??????????????????????????????????????? | | ## #??????????????????????????????????????? | | # #??????????????????????????????????????? | | ##?????????????????????????????????????? | +----------------------------------------------------+ Best States ------------- Heat Dissipation 39 Energy Generation 10 Energy Capacity 250 Matter Stores 300 Matter Capacity 300 Sight Range 16 Robot Scan Range 14 Terrain Scan Range 14 Terrain Scan Density 10 Evasion (%) 53 Targeting Accuracy 5 Item Schematics ----------------- None Robot Schematics ------------------ None Fabricated ------------ Nothing Alien Tech Used ----------------- None Achievements -------------- None Challenges ------------ None Game ------ Seed ClaymoresMetafieldSuite Manual? 0 Play Time 00:16:54 Cumulative 160.6 hours Start 2024.05.24 @ 19:27:22 End 2024.05.24 @ 19:41:48 Sessions 1 Manual Loads 0 Difficulty Rogue Special Mode None Game No. 246 Rogue 246 Adventurer 0 Explorer 0 Win Type - Total 0 Types 0/0/0/0/0/0/0/0/0 Lore% 46 Gallery% 58 Achievement% 44 Wizard Run 0 Options --------- Layout 0 ASCII 0 Keyboard 0 Movement Mouse Keybinds 1 Fullscreen 2 Font 18/SmallcapsGlow Map View 76x50 Zoom Use 0% Tactical HUD 1 Map Filters SATURATION(75) Filters LOW_CONTRAST(23,23,23) Steam 1 RUN: 84b9e086-5a81-462c-8ff0-e0aba9d89ebc